bitfinex/quotes_SOLUSD_20250222
["timestamp","ask_amount","ask_price","bid_price","bid_amount"]
[1740238220719,0.063,174.05,174.04,106.62692092]
[1740238222610,0.063,174.07,174.06,20.0]
[1740238222806,0.063,174.07,174.06,112.89402092]
[1740238223910,0.063,174.07,174.06,118.63912092]
[1740238224104,0.063,174.07,174.06,107.2451]
[1740238224498,0.063,174.07,174.06,101.5]
[1740238225100,0.063,174.07,174.06,81.5]
[1740238227401,0.063,174.07,174.06,105.09577948]
[1740238230011,0.0001,174.07,174.06,122.94645896]
[1740238231697,0.0001,174.07,174.06,123.94645896]
[1740238232693,0.0001,174.07,174.06,142.59610782]
[1740238233991,0.0001,174.07,174.06,123.94645896]
[1740238234198,0.0001,174.07,174.06,126.78523354]
[1740238234393,0.0001,174.07,174.06,107.93455406]
[1740238235518,0.0001,174.07,174.06,81.5]
[1740238235723,0.0001,174.07,174.06,81.53]
[1740238240542,0.0001,174.07,174.06,0.03]
[1740238244414,17.85077948,174.07,174.06,0.03]
[1740238244806,0.0001,174.07,174.06,0.03]
[1740238248123,17.85077948,174.07,174.06,0.03]
[1740238248436,23.59557948,174.07,174.06,0.03]
[1740238250418,42.24522834,174.07,174.06,0.03]
[1740238252622,35.82462419,174.07,174.06,0.03]
[1740238258839,36.82462419,174.07,174.06,0.03]
[1740238259217,38.64964886,174.03,174.02,0.03]
[1740238259522,54.25972419,174.03,174.02,0.03]
[1740238260537,61.00582419,174.03,174.02,0.03]
[1740238261233,60.00582419,174.03,174.02,0.03]
[1740238262522,64.82258775,174.03,174.02,0.03]
[1740238263326,63.82258775,174.03,174.02,0.03]
[1740238263530,62.82258775,174.03,174.02,0.03]
[1740238264230,144.02258775,174.03,174.02,0.03]
[1740238264412,137.02582419,174.03,174.02,0.03]
[1740238264617,105.38,174.03,174.02,0.03]
[1740238265345,85.38,174.03,174.02,0.03]
[1740238266149,4.18,174.03,174.02,0.03]
[1740238267546,4.18,174.05,174.02,0.03]
[1740238268523,22.03926922,174.05,174.02,0.03]
[1740238271149,27.78476922,174.05,174.02,0.03]
[1740238271323,17.85926922,174.04,174.02,0.03]
[1740238271739,27.78476922,174.05,174.02,0.03]
[1740238272549,36.50891808,174.03,174.02,0.03]
[1740238272854,117.70891808,174.03,174.02,0.03]
[1740238273159,18.64964886,174.02,174.01,0.063]
[1740238273335,36.50891808,174.02,174.01,0.063]
[1740238273653,37.50891808,174.02,174.01,0.063]
[1740238273955,36.50891808,174.02,174.01,0.063]
[1740238275036,42.25531808,174.02,174.01,0.063]
[1740238275527,45.19014449,174.02,174.01,0.063]
[1740238275939,46.19014449,174.02,174.01,0.063]
[1740238276255,45.19014449,174.02,174.01,0.063]
[1740238276450,46.19014449,174.02,174.01,0.063]
[1740238278155,45.19014449,174.02,174.01,0.063]
[1740238278849,42.25531808,174.02,174.01,0.063]
[1740238279060,36.50891808,174.02,174.01,0.063]
[1740238279356,42.25531808,174.02,174.01,0.063]
[1740238279556,36.50891808,174.02,174.01,0.063]
[1740238279754,40.68891808,174.02,174.01,0.063]
[1740238279953,75.0,174.03,174.01,0.063]
[1740238280263,0.063,174.06,174.01,0.063]
[1740238280836,4.263,174.06,174.01,17.92226922]
[1740238281161,0.063,174.06,174.02,5.7464]
[1740238281454,0.063,174.06,174.04,17.85926922]
[1740238281761,0.063,174.06,174.02,23.60566922]
[1740238283940,0.063,174.06,174.03,17.85926922]
[1740238284145,0.063,174.06,174.03,99.35926922]
[1740238284346,0.063,174.06,174.04,17.85926922]
[1740238285447,0.063,174.06,174.04,23.60466922]
[1740238286254,0.063,174.06,174.05,17.85926922]
[1740238286461,0.063,174.06,174.05,24.38086922]
[1740238287566,0.063,174.06,174.05,111.62626922]
[1740238289764,0.063,174.06,174.05,105.88086922]
[1740238290141,0.063,174.06,174.05,111.62626922]
[1740238292667,0.063,174.06,174.05,105.1891693]
[1740238292887,0.063,174.06,174.05,88.0216]
[1740238293179,0.063,174.06,174.05,81.5]
[1740238295366,0.063,174.06,174.02,17.1685693]
[1740238298669,0.063,174.06,174.01,89.4164]
[1740238298968,0.063,174.06,174.01,93.5007]
[1740238299375,0.063,174.06,174.01,87.3096]
[1740238301451,0.063,174.06,174.01,98.7317693]
[1740238305978,0.063,174.06,174.03,11.4221693]
[1740238306269,0.063,174.06,174.04,11.4221693]
[1740238306481,0.063,174.06,174.03,11.4221693]
[1740238307277,0.063,174.06,174.04,11.4221693]
[1740238308070,0.063,174.06,174.05,5.7454]
[1740238308377,0.063,174.06,174.05,98.6675693]
[1740238309283,0.063,174.06,174.05,81.5]
[1740238310967,0.063,174.06,174.01,87.3094]
[1740238311678,0.063,174.06,174.01,81.563]
[1740238311977,11.4221693,174.05,174.01,81.563]
[1740238312174,11.4221693,174.04,174.01,81.563]
[1740238312865,17.1676693,174.05,174.01,81.563]
[1740238313785,11.4221693,174.04,174.01,81.563]
[1740238313979,11.4221693,174.02,174.01,0.063]
[1740238319977,17.1685693,174.02,174.01,0.063]
[1740238320195,35.81821816,174.02,174.01,0.063]
[1740238328198,18.64964886,174.01,174.0,0.063]
[1740238328397,31.57861816,174.01,174.0,0.063]
[1740238329100,119.52531816,174.01,174.0,0.063]
[1740238329284,120.52531816,174.01,174.0,0.063]
[1740238329898,119.52531816,174.01,174.0,0.063]
[1740238330081,118.52531816,174.01,174.0,0.063]
[1740238330282,37.32531816,174.01,174.0,0.063]
[1740238332781,38.32531816,174.01,174.0,0.063]
[1740238333103,39.32531816,174.01,174.0,0.063]
[1740238335192,38.64964886,173.98,173.92,0.03]
[1740238335389,11.4221693,173.94,173.92,0.03]
[1740238336094,11.4221693,173.93,173.92,0.03]
[1740238336297,30.07181816,173.93,173.92,0.03]
[1740238337096,11.4221693,173.95,173.92,0.03]
[1740238337488,11.4221693,173.94,173.92,0.03]
[1740238339003,11.4221693,173.93,173.92,0.03]
[1740238339585,17.1715693,173.93,173.92,0.03]
[1740238344105,118.02121816,173.93,173.92,0.03]
[1740238344406,38.64964886,173.89,173.88,0.03]
[1740238344581,54.25181816,173.89,173.88,0.03]
[1740238345212,61.00251816,173.89,173.88,0.03]
[1740238347205,108.31969536,173.89,173.88,0.03]
[1740238347797,62.63101816,173.89,173.88,0.03]
[1740238349490,185.44009536,173.89,173.84,0.03]
[1740238349824,51.07181816,173.85,173.84,0.03]
[1740238349993,122.87181816,173.85,173.84,0.03]
[1740238351796,128.62381816,173.85,173.84,0.03]
[1740238352717,127.62381816,173.85,173.84,0.03]
[1740238352920,128.62381816,173.85,173.84,0.03]
[1740238353810,127.62381816,173.85,173.84,0.03]
[1740238354315,128.62381816,173.85,173.84,0.03]
[1740238354613,117.20164886,173.85,173.84,0.03]
[1740238354918,128.62381816,173.85,173.84,0.03]
[1740238358229,115.20164886,173.85,173.84,0.03]
[1740238358407,130.82381816,173.85,173.84,0.03]
[1740238359299,60.02381816,173.85,173.84,0.03]
[1740238360922,38.64964886,173.85,173.84,0.03]
[1740238361100,70.8,173.87,173.84,0.03]
[1740238361521,75.0,173.87,173.84,0.03]
[1740238365225,4.2,173.87,173.84,0.03]
[1740238367325,18.64964886,173.86,173.84,0.03]
[1740238370316,4.2,173.87,173.84,0.03]
[1740238373427,30.07181816,173.86,173.84,0.03]
[1740238373725,30.07181816,173.85,173.84,0.03]
[1740238375528,35.82381816,173.85,173.84,0.03]
[1740238378411,30.07181816,173.85,173.84,0.03]
[1740238378614,18.64964886,173.85,173.84,0.03]
[1740238381015,4.18,173.85,173.84,0.03]
[1740238382817,81.2,173.86,173.84,0.03]
[1740238383021,85.38,173.86,173.84,0.03]
[1740238386059,4.18,173.86,173.84,0.03]
[1740238387139,18.64964886,173.85,173.84,0.03]
[1740238388536,4.18,173.86,173.84,0.03]
[1740238393750,0.063,173.88,173.85,11.4221693]
[1740238393931,0.063,173.88,173.87,11.4221693]
[1740238394343,0.063,173.88,173.86,11.4221693]
[1740238395255,0.063,173.88,173.87,5.7514]
[1740238398054,0.063,173.88,173.87,17.1735693]
[1740238401353,0.063,173.88,173.87,17.2035693]
[1740238401655,0.0001,173.88,173.87,17.2035693]
[1740238401838,0.0001,173.88,173.87,144.3922465]
[1740238402040,0.0001,173.88,173.87,152.2751465]
[1740238403451,4.18,173.96,173.87,152.2751465]
[1740238403654,4.18,173.96,173.94,11.4221693]
[1740238403854,24.18,173.98,173.94,11.4221693]
[1740238404655,20.0,173.98,173.94,11.4221693]
[1740238405544,20.0,173.98,173.94,17.1711693]
[1740238405745,20.0,173.98,173.94,11.4221693]
[1740238406135,20.0,173.98,173.93,17.1715693]
[1740238409355,20.0,173.98,173.94,11.4221693]
[1740238410069,22.82964886,173.99,173.94,11.4221693]
[1740238410244,22.82964886,173.99,173.95,11.4221693]
[1740238413241,22.89264886,173.99,173.94,11.4221693]
[1740238413447,28.64014886,173.99,173.94,11.4221693]
[1740238413945,28.64014886,173.99,173.93,11.4221693]
[1740238414559,24.46014886,173.99,173.93,11.4221693]
[1740238414761,24.39774886,173.97,173.91,11.4221693]
[1740238415748,24.39774886,173.97,173.92,11.4221693]
[1740238417243,24.39774886,173.97,173.91,11.4221693]
[1740238418272,24.39774886,173.97,173.88,11.4221693]
[1740238418273,30.07181816,173.95,173.88,11.4221693]
[1740238418444,92.6221693,173.94,173.87,11.4521693]
[1740238419065,18.64964886,173.93,173.87,11.4521693]
[1740238419261,18.64964886,173.91,173.87,0.03]
[1740238420174,24.39994886,173.91,173.87,0.03]
[1740238420665,35.82211816,173.91,173.87,0.03]
[1740238420855,81.2,173.9,173.87,0.03]
[1740238421050,18.64964886,173.89,173.87,0.03]
[1740238422176,24.40064886,173.89,173.87,0.03]
[1740238424674,105.60064886,173.89,173.87,0.03]
[1740238427273,99.84964886,173.89,173.87,0.03]
[1740238427973,105.60034886,173.89,173.87,0.03]
[1740238428156,99.84964886,173.89,173.87,0.03]
[1740238429470,81.2,173.89,173.87,0.03]
[1740238429679,4.18,173.88,173.87,0.03]
[1740238430291,81.2,173.89,173.87,11.4521693]
[1740238430581,4.18,173.9,173.88,11.4221693]
[1740238433619,9.9305,173.9,173.87,11.4521693]
[1740238433757,9.9305,173.9,173.87,0.03]
[1740238434359,18.64964886,173.89,173.87,0.03]
[1740238435780,5.751,173.88,173.87,0.03]
[1740238438492,25.7508,173.89,173.87,0.03]
[1740238438679,18.64964886,173.88,173.87,0.03]
[1740238440594,20.0,173.89,173.87,11.4521693]
[1740238440767,24.18,173.89,173.87,11.4521693]
[1740238440969,24.18,173.89,173.87,0.03]
[1740238441205,29.9308,173.89,173.87,0.03]
[1740238441389,18.64964886,173.88,173.87,0.03]
[1740238441588,24.18,173.89,173.87,0.03]
[1740238442083,20.0,173.89,173.87,0.03]
[1740238442289,24.18,173.89,173.87,0.03]
[1740238443268,4.18,173.89,173.87,0.03]
[1740238443470,4.18,173.89,173.87,11.4521693]
[1740238444170,4.18,173.89,173.87,0.03]
[1740238445493,9.9309,173.89,173.87,0.03]
[1740238447496,9.9939,173.89,173.87,0.03]
[1740238448581,4.243,173.89,173.87,0.03]
[1740238449298,9.9939,173.89,173.87,0.03]
[1740238449497,4.243,173.89,173.87,0.03]
[1740238450673,0.063,173.89,173.88,11.4221693]
[1740238460299,0.063,173.89,173.88,17.1731693]
[1740238461004,0.063,173.89,173.88,144.3618465]
[1740238471015,4.18,173.97,173.96,11.4221693]
[1740238473615,0.063,173.99,173.96,11.4221693]
[1740238473920,4.243,173.99,173.96,11.4221693]
[1740238474915,4.243,173.99,173.97,11.4221693]
[1740238475119,0.063,173.99,173.98,11.4221693]
[1740238476398,0.063,173.99,173.98,17.1698693]
[1740238476592,0.063,173.99,173.98,98.6698693]
[1740238482516,0.063,174.0,173.98,98.6698693]
[1740238482712,0.063,174.0,173.99,11.4221693]
[1740238485623,0.063,174.0,173.99,17.1695693]
[1740238487039,0.063,174.0,173.99,98.6695693]
[1740238487212,0.063,174.02,173.99,98.6695693]
[1740238487413,0.063,174.02,174.01,11.4221693]
[1740238489541,0.063,174.02,174.01,17.1688693]
[1740238490233,0.063,174.06,174.01,98.6688693]
[1740238490439,0.063,174.06,174.05,11.4221693]
[1740238491329,0.0001,174.07,174.05,57.1108465]
[1740238491630,0.0001,174.07,174.06,62.8559465]
[1740238491940,0.0001,174.07,174.06,57.1108465]
[1740238495336,4.38,174.13,174.07,5.7448]
[1740238495534,4.38,174.13,174.12,11.4221693]
[1740238496224,4.38,174.13,174.11,11.4221693]
[1740238496938,5.7425,174.14,174.11,11.4221693]
[1740238497132,4.38,174.13,174.11,11.4221693]
[1740238499142,10.123,174.13,174.07,81.5]
[1740238499334,10.123,174.13,174.09,11.4221693]
[1740238500437,10.123,174.13,174.08,11.4221693]
[1740238500638,24.39284886,174.12,174.06,11.4221693]
[1740238501030,24.39284886,174.12,174.07,11.4221693]
[1740238501229,24.39284886,174.12,174.09,11.4221693]
[1740238502152,18.64964886,174.12,174.09,11.4221693]
[1740238503850,4.38,174.13,174.11,11.4221693]
[1740238504067,4.36,174.15,174.12,11.4221693]
[1740238504230,4.36,174.15,174.14,11.4221693]
[1740238504426,23.00964886,174.15,174.12,11.4221693]
[1740238504624,4.36,174.14,174.1,11.4221693]
[1740238505855,10.1025,174.14,174.1,11.4221693]
[1740238506163,5.7421,174.16,174.12,11.4221693]
[1740238506348,4.36,174.14,174.12,11.4221693]
[1740238507539,4.36,174.14,174.11,11.4221693]
[1740238507851,18.64964886,174.13,174.08,11.4221693]
[1740238508055,18.64964886,174.13,174.07,11.4221693]
[1740238508457,18.64964886,174.13,174.08,11.4221693]
[1740238508670,18.64964886,174.13,174.07,11.4221693]
[1740238509952,98.3652693,174.12,174.02,87.2462]
[1740238510152,18.64964886,174.1,174.04,11.4221693]
[1740238511146,5.7441,174.09,174.04,11.4221693]
[1740238511353,4.36,174.08,174.04,11.4221693]
[1740238511837,4.36,174.08,174.05,11.4221693]
[1740238512155,4.36,174.08,174.07,11.4221693]
[1740238512346,86.9431,174.12,174.07,11.4221693]
[1740238512347,81.2,174.12,174.07,11.4221693]
[1740238512547,6.6348,174.15,174.11,11.4221693]
[1740238512548,6.0218,174.14,174.11,11.4221693]
[1740238512857,11.7643,174.14,174.1,11.4221693]
[1740238513259,11.7643,174.14,174.09,11.4221693]
[1740238513833,11.7643,174.14,174.07,81.5]
[1740238513834,11.7643,174.14,174.1,11.4221693]
[1740238515342,18.64964886,174.13,174.09,11.4221693]
[1740238515660,11.4221693,174.12,174.05,11.4221693]
[1740238515856,18.64964886,174.13,174.03,11.4221693]
[1740238515857,11.4221693,174.1,174.03,11.4221693]
[1740238516060,11.4221693,174.1,174.02,81.5]
[1740238516249,11.4221693,174.1,174.03,11.4221693]
[1740238516447,99.84964886,174.11,174.05,11.4221693]
[1740238516652,81.2,174.1,174.05,11.4221693]
[1740238517068,5.7441,174.09,174.05,11.4221693]
[1740238517252,23.00964886,174.08,174.05,11.4221693]
[1740238517442,23.00964886,174.08,174.04,11.4221693]
[1740238518046,23.00964886,174.08,174.05,11.4221693]
[1740238518566,28.75424886,174.08,174.04,11.4221693]
[1740238519142,28.75424886,174.08,174.05,11.4221693]
[1740238519341,28.75424886,174.08,174.04,11.4221693]
[1740238519861,18.64964886,174.06,174.01,11.4221693]
[1740238520065,18.64964886,174.04,174.0,0.03]
[1740238520667,18.64964886,174.03,174.0,0.03]
[1740238520963,4.36,174.02,174.0,0.03]
[1740238521947,10.1065,174.02,174.0,0.03]
[1740238522570,4.36,174.02,174.0,0.03]
[1740238523360,10.1065,174.02,174.0,0.03]
[1740238524266,111.27181816,174.01,174.0,0.03]
[1740238524451,112.80151816,174.01,174.0,0.03]
[1740238526154,43.37491816,174.01,174.0,0.03]
[1740238528879,18.64964886,174.01,174.0,0.03]
[1740238529050,4.36,174.01,174.0,0.03]
[1740238530058,10.1067,174.01,174.0,0.03]
[1740238531073,4.36,174.01,174.0,0.03]
[1740238531466,10.1067,174.01,174.0,0.03]
[1740238531856,4.36,174.01,174.0,0.03]
[1740238532485,10.1067,174.01,174.0,0.03]
[1740238532855,40.17851816,174.01,174.0,0.03]
[1740238533849,23.00964886,174.01,174.0,0.03]
[1740238535574,4.36,174.01,174.0,0.03]
[1740238536370,18.64964886,174.02,174.0,0.03]
[1740238536571,4.36,174.01,174.0,0.03]
[1740238538959,21.5288693,174.01,174.0,0.03]
[1740238539154,10.1067,174.01,174.0,0.03]
[1740238540092,4.36,174.01,174.0,0.03]
[1740238540975,18.64964886,174.03,174.0,0.03]
[1740238541165,23.00964886,174.03,174.0,0.03]
[1740238541487,28.75584886,174.03,174.0,0.03]
[1740238542187,11.4221693,174.02,174.0,0.03]
[1740238542368,11.4221693,174.01,174.0,0.03]
[1740238542750,11.4221693,174.02,174.0,0.03]
[1740238543155,23.00964886,174.03,174.0,0.03]
[1740238544668,18.64964886,174.03,174.0,0.03]
[1740238544874,4.36,174.02,174.0,0.03]
[1740238545071,4.36,174.05,174.01,11.4221693]
[1740238545284,4.36,174.05,174.02,11.4221693]
[1740238545586,4.36,174.05,174.01,11.4221693]
[1740238545761,4.36,174.05,174.02,11.4221693]
[1740238547504,4.36,174.05,174.01,11.4221693]
[1740238547674,11.4221693,174.03,174.0,0.03]
[1740238548293,18.64964886,174.02,174.0,0.03]
[1740238548794,21.5277693,174.05,174.0,0.03]
[1740238549090,18.64964886,174.04,174.0,0.03]
[1740238550481,4.36,174.05,174.0,0.03]
[1740238550686,4.36,174.05,174.0,17.89080587]
[1740238551787,4.36,174.05,174.0,23.63780587]
[1740238552393,4.36,174.05,174.01,17.86080587]
[1740238552680,18.64964886,174.06,174.01,17.86080587]
[1740238552888,22.98964886,174.06,174.01,17.86080587]
[1740238554292,22.98964886,174.06,174.01,23.60750587]
[1740238554599,4.403,174.07,174.03,17.86080587]
[1740238556503,0.063,174.07,174.06,17.86080587]
[1740238558600,0.063,174.07,174.06,23.60590587]
[1740238560492,0.063,174.07,174.06,17.86080587]
[1740238561107,0.063,174.07,174.06,23.60590587]
[1740238561515,0.063,174.07,174.06,17.86080587]
[1740238561899,0.063,174.07,174.05,81.5]
[1740238564197,18.71264886,174.07,174.05,81.5]
[1740238564583,5.7451,174.06,174.02,17.86080587]
[1740238564784,24.45744886,174.07,174.02,17.86080587]
[1740238564984,0.063,174.07,174.04,17.86080587]
[1740238565198,0.063,174.07,174.03,17.86080587]
[1740238565707,0.063,174.07,174.06,17.86080587]
[1740238567907,0.063,174.07,174.05,17.89080587]
[1740238568113,0.063,174.07,174.05,0.03]
[1740238569194,4.34,174.06,174.05,0.03]
[1740238569401,40.85045473,174.06,174.05,0.03]
[1740238570319,122.05045473,174.06,174.05,0.03]
[1740238570685,127.79555473,174.06,174.05,0.03]
[1740238573802,46.59555473,174.06,174.05,0.03]
[1740238579138,117.39555473,174.06,174.05,0.03]
[1740238581017,1.5667,174.01,174.0,0.03]
[1740238581323,20.0,173.93,173.88,0.03]
[1740238581496,17.86080587,173.9,173.88,0.03]
[1740238581696,24.32,173.92,173.88,0.03]
[1740238582111,18.64964886,173.91,173.88,0.03]
[1740238582314,36.51045473,173.91,173.88,0.03]
[1740238582516,36.51045473,173.9,173.88,0.03]
[1740238583309,18.64964886,173.9,173.88,0.03]
[1740238584706,36.51045473,173.9,173.88,0.03]
[1740238585605,42.26085473,173.9,173.88,0.03]
[1740238586000,24.40004886,173.9,173.88,0.03]
[1740238586200,42.26085473,173.9,173.88,0.03]
[1740238587839,18.64964886,173.9,173.88,0.03]
[1740238589916,123.46085473,173.9,173.88,0.03]
[1740238591328,99.84964886,173.9,173.88,0.03]
[1740238591912,105.60004886,173.9,173.88,0.03]
[1740238592231,99.84964886,173.9,173.88,0.03]
[1740238593720,123.46085473,173.9,173.88,0.03]
[1740238594227,99.84964886,173.9,173.88,0.03]
[1740238594637,105.60004886,173.9,173.88,0.03]
[1740238595015,99.84964886,173.9,173.88,0.03]
[1740238595838,105.60004886,173.9,173.88,0.03]
[1740238596345,99.84964886,173.9,173.88,0.03]
[1740238596511,123.46085473,173.9,173.88,0.03]
[1740238599911,42.26085473,173.9,173.88,0.03]
[1740238600137,44.89155473,173.9,173.88,0.03]
[1740238601215,43.89155473,173.9,173.88,0.03]
[1740238601407,48.19155473,173.9,173.88,0.03]
[1740238603747,51.01551902,173.9,173.88,0.03]
[1740238605140,52.01551902,173.9,173.88,0.03]
[1740238605444,53.01551902,173.9,173.88,0.03]
[1740238605847,53.01551902,173.9,173.89,0.0001]
[1740238614640,52.01551902,173.9,173.89,0.0001]
[1740238618751,40.31070111,173.9,173.89,0.0001]
[1740238618946,27.22401315,173.9,173.89,0.0001]
[1740238619256,31.50401315,173.9,173.89,0.0001]
[1740238619749,42.96000111,173.9,173.89,0.0001]
[1740238620128,31.50401315,173.9,173.89,0.0001]
[1740238620456,27.22401315,173.9,173.89,0.0001]
[1740238620650,31.50401315,173.9,173.89,0.0001]
[1740238623028,28.68004886,173.9,173.89,0.0001]
[1740238623429,18.64964886,173.9,173.89,0.0001]
[1740238623636,22.92964886,173.9,173.89,17.89416805]
[1740238623851,167.56,173.92,173.89,17.89416805]
[1740238624342,5.749,173.95,173.91,17.89406805]
[1740238624544,70.8,173.97,173.92,17.89406805]
[1740238624545,18.64964886,173.93,173.92,17.89406805]
[1740238624841,18.64964886,173.93,173.89,19.49636805]
[1740238625441,18.64964886,173.93,173.9,17.89406805]
[1740238625677,18.64964886,173.93,173.91,17.89406805]
[1740238625678,4.28,173.93,173.91,17.89406805]
[1740238625834,4.28,173.93,173.92,17.89406805]
[1740238626029,5.7482,173.97,173.92,24.54666805]
[1740238626234,4.28,173.95,173.94,17.89406805]
[1740238626962,18.64964886,173.94,173.89,19.49636805]
[1740238627964,5.7494,173.93,173.89,19.49636805]
[1740238628136,5.7494,173.93,173.89,0.0001]
[1740238628336,23.64346805,173.93,173.89,0.0001]
[1740238629061,5.7494,173.93,173.89,0.0001]
[1740238632567,18.64964886,173.92,173.89,0.0001]
[1740238634156,24.39944886,173.92,173.89,0.0001]
[1740238636865,24.46244886,173.92,173.89,0.0001]
[1740238637658,0.063,173.92,173.89,17.89416805]
[1740238637867,0.063,173.92,173.9,17.89406805]
[1740238639349,0.063,173.92,173.91,17.89406805]
[1740238639739,0.063,173.92,173.91,24.00986805]
[1740238640747,0.063,173.92,173.91,31.26766805]
[1740238641343,0.063,173.92,173.91,112.76766805]
[1740238642752,0.0001,173.92,173.91,106.3109855]
[1740238642962,4.26,174.01,173.94,20.0]
[1740238643282,4.26,174.01,173.99,11.4373855]
[1740238643483,18.64964886,174.05,174.0,11.4373855]
[1740238643648,4.26,174.04,174.01,11.4373855]
[1740238643850,0.063,174.07,174.01,11.4373855]
[1740238644051,4.26,174.04,174.02,11.4373855]
[1740238644883,4.26,174.04,174.01,11.4373855]
[1740238646872,4.26,174.04,174.02,11.4373855]
[1740238647174,4.26,174.04,174.03,11.4373855]
[1740238647355,4.26,174.04,174.02,11.4373855]
[1740238647874,4.26,174.04,173.98,83.0077]
[1740238648059,10.0058,174.04,174.0,11.4373855]
[1740238648455,10.0688,174.04,174.0,11.4373855]
[1740238648747,10.0688,174.04,173.99,11.4373855]
[1740238650976,21.5061855,174.04,173.98,81.5]
[1740238651185,11.4373855,174.02,173.98,81.5]
[1740238651857,11.4373855,174.01,173.98,81.5]
[1740238652083,31.4373855,174.0,173.94,11.4373855]
[1740238652287,5.7474,173.99,173.94,11.4373855]
[1740238652462,4.26,173.98,173.94,11.4373855]
[1740238652887,15.6973855,173.98,173.91,17.9308855]
[1740238653599,15.6973855,173.98,173.91,11.4373855]
[1740238654800,37.99731509,173.97,173.9,17.87901509]
[1740238655098,17.87901509,173.96,173.89,17.87911509]
[1740238655299,17.87901509,173.95,173.89,0.0001]
[1740238655501,17.87901509,173.94,173.89,0.0001]
[1740238655885,17.87901509,173.93,173.89,0.0001]
[1740238656071,4.28,173.92,173.89,0.0001]
[1740238656790,10.0299,173.92,173.89,0.0001]
[1740238659771,10.0929,173.92,173.89,0.0001]
[1740238660068,4.343,173.92,173.89,0.0001]
[1740238660271,4.343,173.92,173.89,17.87911509]
[1740238660691,4.343,173.92,173.89,0.0001]
[1740238660879,10.0929,173.92,173.89,0.0001]
[1740238662593,4.343,173.92,173.89,0.0001]
[1740238662795,0.063,173.92,173.9,17.87901509]
[1740238662975,4.323,173.92,173.91,17.87901509]
[1740238663173,0.063,173.92,173.91,17.87901509]
[1740238665772,0.063,173.92,173.9,17.87901509]
[1740238666080,0.063,173.92,173.89,99.37911509]
[1740238668305,0.063,173.92,173.89,81.5001]
[1740238671199,0.063,173.92,173.89,0.0001]
[1740238672213,0.063,173.92,173.89,17.87911509]
[1740238674112,0.063,173.92,173.89,0.0001]
[1740238675777,11.4463623,173.91,173.89,0.0001]
[1740238675983,4.26,173.9,173.89,0.0001]
[1740238676505,10.0104,173.9,173.89,0.0001]
[1740238679185,28.66004886,173.9,173.89,0.0001]
[1740238680410,10.0104,173.9,173.89,0.0001]
[1740238681303,4.26,173.9,173.89,0.0001]
[1740238682822,4.26,173.9,173.89,11.4464623]
[1740238682995,4.26,173.9,173.89,0.0001]
[1740238684315,10.0104,173.9,173.89,0.0001]
[1740238685921,40.10641116,173.9,173.89,0.0001]
[1740238686297,28.66004886,173.9,173.89,0.0001]
[1740238689120,40.10641116,173.9,173.89,0.0001]
[1740238691529,28.66004886,173.9,173.89,0.0001]
[1740238692126,109.86004886,173.9,173.89,0.0001]
[1740238692630,85.46,173.9,173.89,0.0001]
[1740238695106,91.2104,173.9,173.89,0.0001]
[1740238695312,102.6567623,173.9,173.89,0.0001]
[1740238695622,91.2104,173.9,173.89,0.0001]
[1740238696631,10.0104,173.9,173.89,0.0001]
[1740238697835,40.10641116,173.9,173.89,0.0001]
[1740238700435,101.44914886,173.89,173.88,0.0001]
[1740238700629,32.69551116,173.89,173.88,0.0001]
[1740238702130,20.0,173.85,173.84,0.03]
[1740238702328,120.89601116,173.85,173.84,0.03]